fUST/lending_fUST_20250523
["ID","MTS","AMOUNT","RATE_DAILY","PERIOD"]
[362108024,1748002243977,-430.0,0.00021009,2]
[362108046,1748002244126,-430.0,0.00021009,2]
[362108048,1748002244136,-430.0,0.00021009,2]
[362108050,1748002244146,-430.0,0.00021009,2]
[362108052,1748002244156,-430.0,0.00021009,2]
[362108055,1748002244166,-430.0,0.00021009,2]
[362108056,1748002244176,-400.0,0.00021009,2]
[362108058,1748002244185,-430.0,0.00021009,2]
[362108060,1748002244194,-430.0,0.00021009,2]
[362108062,1748002244204,-430.0,0.00021009,2]
[362108064,1748002244215,-503.22082011,0.00021009,2]
[362108066,1748002244224,-151.0,0.00021009,2]
[362108068,1748002244235,-401.90727234,0.00021009,2]
[362108070,1748002244244,-500.0,0.00021009,2]
[362108072,1748002244254,-430.0,0.00021009,2]
[362108074,1748002244264,-430.0,0.00021009,2]
[362108076,1748002244273,-430.0,0.00021009,2]
[362108078,1748002244283,-430.0,0.00021009,2]
[362108081,1748002244295,-430.0,0.00021009,2]
[362108083,1748002244305,-430.0,0.00021009,2]
[362108085,1748002244314,-430.0,0.00021009,2]
[362108087,1748002244323,-430.0,0.00021009,2]
[362108089,1748002244334,-506.12198515,0.00021009,2]
[362108091,1748002244343,-151.0,0.00021009,2]
[362108093,1748002244353,-430.0,0.00021009,2]
[362108095,1748002244363,-430.0,0.00021009,2]
[362108097,1748002244373,-430.0,0.00021009,2]
[362108099,1748002244383,-430.0,0.00021009,2]
[362108101,1748002244392,-430.0,0.00021009,2]
[362108103,1748002244401,-151.0,0.00021009,2]
[362108105,1748002244411,-430.0,0.00021009,2]
[362108107,1748002244421,-430.0,0.00021009,2]
[362108109,1748002244433,-430.0,0.00021009,2]
[362108111,1748002244442,-377.25233084,0.00021009,2]
[362108113,1748002244452,-370.0,0.00021009,2]
[362108115,1748002244461,-430.0,0.00021009,2]
[362108117,1748002244473,-151.0,0.00021009,2]
[362108119,1748002244482,-151.0,0.00021009,2]
[362108121,1748002244491,-430.0,0.00021009,2]
[362108123,1748002244502,-430.0,0.00021009,2]
[362108125,1748002244511,-151.0,0.00021009,2]
[362108127,1748002244521,-430.0,0.00021009,2]
[362108129,1748002244530,-430.0,0.00021009,2]
[362108131,1748002244540,-430.0,0.00021009,2]
[362108133,1748002244550,-401.70420192,0.00021009,2]
[362108135,1748002244559,-430.0,0.00021009,2]
[362108137,1748002244569,-151.0,0.00021009,2]
[362108139,1748002244578,-430.0,0.00021009,2]
[362108141,1748002244587,-176.88294,0.00021009,2]
[362108143,1748002244598,-430.0,0.00021009,2]
[362108145,1748002244607,-151.0,0.00021009,2]
[362108147,1748002244617,-151.0,0.00021009,2]
[362108150,1748002244633,-173.24107304,0.00021009,2]
[362108152,1748002244644,-430.0,0.00021009,2]
[362108154,1748002244664,-430.0,0.00021009,2]
[362108156,1748002244686,-151.0,0.00021009,2]
[362108158,1748002244697,-482.23,0.00021009,2]
[362108160,1748002244708,-430.0,0.00021009,2]
[362108162,1748002244720,-375.30368883,0.00021009,2]
[362108164,1748002244730,-430.0,0.00021009,2]
[362108166,1748002244743,-233.623306,0.00021009,2]
[362108168,1748002244753,-305.75104148,0.00021009,2]
[362108170,1748002244763,-402.34794163,0.00021009,2]
[362108172,1748002244775,-430.0,0.00021009,2]
[362108174,1748002244786,-233.623306,0.00021009,2]
[362108176,1748002244797,-430.0,0.00021009,2]
[362108178,1748002244807,-430.0,0.00021009,2]
[362108180,1748002244817,-444.83,0.00021009,2]
[362108182,1748002244826,-151.0,0.00021009,2]
[362108184,1748002244836,-214.72614986,0.00021009,2]
[362108186,1748002244846,-374.79673978,0.00021009,2]
[362108188,1748002244856,-430.0,0.00021009,2]
[362108190,1748002244866,-420.0,0.00021009,2]
[362108192,1748002244876,-257.87566978,0.00021009,2]
[362108194,1748002244886,-370.0,0.00021009,2]
[362108196,1748002244896,-423.43900655,0.00021009,2]
[362108198,1748002244906,-421.11427221,0.00021009,2]
[362108200,1748002244916,-232.37910752,0.00021009,2]
[362108202,1748002244926,-151.0,0.00021009,2]
[362108204,1748002244936,-430.0,0.00021009,2]
[362108206,1748002244946,-151.0,0.00021009,2]
[362108208,1748002244956,-430.0,0.00021009,2]
[362108210,1748002244969,-430.0,0.00021009,2]
[362108212,1748002244979,-429.88,0.00021009,2]
[362108214,1748002244989,-163.572128,0.00021009,2]
[362108216,1748002244999,-163.572128,0.00021009,2]
[362108218,1748002245010,-430.0,0.00021009,2]
[362108220,1748002245020,-151.654972,0.00021009,2]
[362108222,1748002245031,-552.37488178,0.00021009,2]
[362108224,1748002245040,-163.572128,0.00021009,2]
[362108227,1748002245051,-163.572128,0.00021009,2]
[362108229,1748002245061,-500.0,0.00021009,2]
[362108231,1748002245072,-430.0,0.00021009,2]
[362108233,1748002245082,-430.0,0.00021009,2]
[362108235,1748002245091,-430.0,0.00021009,2]
[362108237,1748002245101,-375.64591643,0.00021009,2]
[362108239,1748002245111,-430.0,0.00021009,2]
[362108241,1748002245121,-430.0,0.00021009,2]
[362108243,1748002245131,-430.0,0.00021009,2]
[362108245,1748002245141,-373.3996915,0.00021009,2]
[362108247,1748002245151,-430.0,0.00021009,2]
[362108249,1748002245161,-430.0,0.00021009,2]
[362108251,1748002245171,-430.0,0.00021009,2]
[362108253,1748002245181,-430.0,0.00021009,2]
[362108255,1748002245191,-373.40830348,0.00021009,2]
[362108257,1748002245202,-517.92,0.00021009,2]
[362108259,1748002245212,-430.0,0.00021009,2]
[362108261,1748002245225,-370.0,0.00021009,2]
[362108263,1748002245235,-430.0,0.00021009,2]
[362108265,1748002245245,-151.0,0.00021009,2]
[362108268,1748002245255,-151.0,0.00021009,2]
[362108270,1748002245265,-151.0,0.00021009,2]
[362108272,1748002245276,-151.0,0.00021009,2]
[362108275,1748002245286,-370.0,0.00021009,2]
[362108277,1748002245296,-430.0,0.00021009,2]
[362108279,1748002245306,-374.37213231,0.00021009,2]
[362108282,1748002245316,-430.0,0.00021009,2]
[362108285,1748002245326,-375.56559183,0.00021009,2]
[362108287,1748002245335,-430.0,0.00021009,2]
[362108290,1748002245346,-370.0,0.00021009,2]
[362108292,1748002245356,-430.0,0.00021009,2]
[362108294,1748002245367,-375.90937572,0.00021009,2]
[362108297,1748002245377,-430.0,0.00021009,2]
[362108300,1748002245387,-374.66777287,0.00021009,2]
[362108303,1748002245397,-430.0,0.00021009,2]
[362108306,1748002245407,-374.61347319,0.00021009,2]
[362108309,1748002245417,-430.0,0.00021009,2]
[362108314,1748002245427,-316.62,0.00021009,2]
[362108318,1748002245437,-372.89759359,0.00021009,2]
[362108322,1748002245447,-434.44955799,0.00021009,2]
[362108325,1748002245456,-151.0,0.00021009,2]
[362108328,1748002245469,-151.0,0.00021009,2]
[362108331,1748002245478,-430.40519998,0.00021009,2]
[362108334,1748002245488,-430.0,0.00021009,2]
[362108336,1748002245497,-392.93822195,0.00021009,2]
[362108338,1748002245506,-430.0,0.00021009,2]
[362108341,1748002245516,-179.45518543,0.00021009,2]
[362108344,1748002245526,-378.96100266,0.00021009,2]
[362108347,1748002245536,-430.0,0.00021009,2]
[362108350,1748002245547,-409.8,0.00021009,2]
[362108353,1748002245558,-430.0,0.00021009,2]
[362108357,1748002245569,-430.0,0.00021009,2]
[362108360,1748002245578,-151.0,0.00021009,2]
[362108362,1748002245587,-430.0,0.00021009,2]
[362108364,1748002245597,-430.0,0.00021009,2]
[362108367,1748002245607,-430.0,0.00021009,2]
[362108369,1748002245617,-370.0,0.00021009,2]
[362108371,1748002245627,-396.52867998,0.00021009,2]
[362108373,1748002245638,-430.0,0.00021009,2]
[362108375,1748002245648,-430.0,0.00021009,2]
[362108377,1748002245658,-430.0,0.00021009,2]
[362108379,1748002245667,-375.10734969,0.00021009,2]
[362108381,1748002245678,-3000.0,0.0002101,2]
[362108383,1748002245688,-532.48,0.0002101,3]
[362108385,1748002245698,-500.0,0.00021011,2]
[362108387,1748002245708,-153.159294,0.00021012,2]
[362108389,1748002245720,-151.0,0.00021012,2]
[362108391,1748002245730,-151.0,0.00021012,2]
[362108393,1748002245740,-152.99136,0.00021012,2]
[362108395,1748002245752,-151.0,0.00021012,2]
[362108397,1748002245762,-151.0,0.00021012,2]
[362108399,1748002245772,-151.150055,0.00021012,2]
[362108401,1748002245782,-151.0,0.00021012,2]
[362108403,1748002245791,-151.0,0.00021012,2]
[362108405,1748002245802,-151.0,0.00021012,2]
[362108407,1748002245811,-233.623306,0.00021012,2]
[362108409,1748002245821,-233.623306,0.00021012,2]
[362108411,1748002245832,-151.0,0.00021012,2]
[362108413,1748002245842,-163.572128,0.00021012,2]
[362108415,1748002245852,-163.572128,0.00021012,2]
[362108417,1748002245862,-151.0,0.00021012,2]
[362108419,1748002245871,-661.72,0.00021013,3]
[362108421,1748002245881,-151.0,0.00021014,2]
[362108423,1748002245890,-500.0,0.00021018,2]
[362108425,1748002245900,-430.0,0.00021019,2]
[362108427,1748002245910,-430.0,0.00021019,2]
[362108429,1748002245920,-430.0,0.00021019,2]
[362108431,1748002245930,-405.47760609,0.00021019,2]
[362108433,1748002245940,-400.7837602,0.00021019,2]
[362108435,1748002245950,-500.0,0.00021019,2]
[362108437,1748002245960,-191.010539,0.00021019,2]
[362108439,1748002245973,-151.0,0.00021019,2]
[362108441,1748002245983,-151.0,0.00021019,2]
[362108443,1748002245993,-151.0,0.00021019,2]
[362108445,1748002246003,-3000.0,0.0002102,2]
[362108447,1748002246013,-500.0,0.00021022,2]
[362108449,1748002246023,-151.0,0.00021023,2]
[362108451,1748002246033,-151.0,0.00021023,2]
[362108453,1748002246043,-151.0,0.00021023,2]
[362108456,1748002246053,-151.0,0.00021023,2]
[362108458,1748002246063,-151.0,0.00021023,2]
[362108460,1748002246073,-322.185845,0.00021023,2]
[362108462,1748002246083,-322.185845,0.00021023,2]
[362108464,1748002246092,-3000.0,0.0002103,2]
[362108466,1748002246102,-430.0,0.00021035,2]
[362108468,1748002246111,-370.0,0.00021035,2]
[362108470,1748002246121,-430.0,0.00021035,2]
[362108472,1748002246131,-430.0,0.00021035,2]
[362108474,1748002246141,-430.0,0.00021035,2]
[362108476,1748002246151,-378.5984417,0.00021035,2]
[362108478,1748002246161,-430.0,0.00021035,2]
[362108480,1748002246171,-430.0,0.00021035,2]
[362108482,1748002246181,-430.0,0.00021035,2]
[362108484,1748002246190,-430.0,0.00021035,2]
[362108486,1748002246200,-430.0,0.00021035,2]
[362108488,1748002246209,-175.72187496,0.00021035,2]
[362108490,1748002246222,-430.0,0.00021035,2]
[362108492,1748002246231,-430.0,0.00021035,2]
[362108494,1748002246241,-420.0,0.00021035,2]
[362108497,1748002246251,-3000.0,0.0002104,2]
[362108499,1748002246261,-151.0,0.0002104,2]
[362108500,1748002246271,-151.0,0.00021042,2]
[362108503,1748002246282,-3000.0,0.0002105,2]
[362108505,1748002246291,-151.0,0.0002105,2]
[362108516,1748002246396,-151.0,0.0002105,2]
[362108519,1748002246406,-500.0,0.00021059,2]
[362108521,1748002246417,-500.0,0.00021059,2]
[362108523,1748002246427,-3000.0,0.0002106,2]
[362108525,1748002246437,-151.0,0.0002106,2]
[362108527,1748002246447,-220.57,0.0002106,3]
[362108529,1748002246457,-151.0,0.0002106,2]
[362108531,1748002246471,-151.0,0.0002106,2]
[362108533,1748002246481,-151.0,0.0002106,2]
[362108535,1748002246491,-151.0,0.00021069,2]
[362108537,1748002246501,-3000.0,0.0002107,2]
[362108539,1748002246511,-151.0,0.0002107,2]
[362108541,1748002246521,-151.0,0.0002107,2]
[362108543,1748002246531,-233.623306,0.0002107,2]
[362108545,1748002246541,-233.623306,0.0002107,2]
[362108547,1748002246551,-254.93392,0.0002107,2]
[362108549,1748002246562,-163.572128,0.0002107,2]
[362108551,1748002246572,-163.572128,0.0002107,2]
[362108553,1748002246582,-151.0,0.0002107,2]
[362108556,1748002246592,-151.0,0.0002107,2]
[362108557,1748002246601,-151.0,0.0002107,2]
[362108559,1748002246610,-151.0,0.0002107,2]
[362108562,1748002246620,-3000.0,0.0002108,2]
[362108564,1748002246630,-3000.0,0.0002109,2]
[362108566,1748002246639,-243.35232147,0.00021097,2]
[362108568,1748002246649,-3000.0,0.000211,2]
[362108570,1748002246658,-450.39167617,0.00021107,4]
[362108572,1748002246668,-500.0,0.00021108,2]
[362108574,1748002246678,-3000.0,0.0002111,2]
[362108576,1748002246688,-182.356504,0.0002111,2]
[362108578,1748002246698,-151.0,0.0002111,2]
[362108580,1748002246707,-151.0,0.0002111,2]
[362108582,1748002246721,-151.0,0.0002111,2]
[362108584,1748002246731,-151.0,0.0002111,2]
[362108586,1748002246745,-322.185845,0.0002111,2]
[362108588,1748002246755,-322.185845,0.0002111,2]
[362108590,1748002246765,-3000.0,0.0002112,2]
[362108592,1748002246775,-500.0,0.00021128,2]
[362108594,1748002246787,-500.0,0.00021129,2]
[362108596,1748002246797,-3000.0,0.0002113,2]
[362108598,1748002246806,-500.0,0.00021139,2]
[362108600,1748002246818,-471.61922354,0.00021139,2]
[362108602,1748002246828,-3000.0,0.0002114,2]
[362108604,1748002246839,-3000.0,0.0002115,2]
[362108606,1748002246849,-151.0,0.0002115,2]
[362108608,1748002246859,-3000.0,0.0002116,2]
[362108610,1748002246868,-500.0,0.00021169,2]
[362108612,1748002246879,-5318.719029,0.0002117,2]
[362108614,1748002246889,-151.0,0.0002117,2]
[362108617,1748002246900,-152.665372,0.0002117,2]
[362108619,1748002246911,-151.0,0.0002117,2]
[362108621,1748002246920,-151.0,0.0002117,2]
[362108622,1748002246930,-151.0,0.0002117,2]
[362108625,1748002246940,-151.0,0.0002117,2]
[362108626,1748002246950,-151.0,0.0002117,2]
[362108629,1748002246961,-200.815011,0.0002117,2]
[362108631,1748002246975,-200.815011,0.0002117,2]
[362108633,1748002246986,-309.962197,0.0002117,2]
[362108635,1748002246996,-309.962197,0.0002117,2]
[362108637,1748002247006,-151.554944,0.0002117,2]
[362108639,1748002247016,-151.0,0.0002117,2]
[362108641,1748002247026,-151.0,0.0002117,2]
[362108643,1748002247036,-151.0,0.0002117,2]
[362108645,1748002247046,-233.623306,0.0002117,2]
[362108647,1748002247056,-233.623306,0.0002117,2]
[362108649,1748002247066,-163.572128,0.0002117,2]
[362108651,1748002247077,-163.572128,0.0002117,2]
[362108653,1748002247087,-151.0,0.0002117,2]
[362108655,1748002247096,-152.207674,0.0002117,2]
[362108657,1748002247106,-151.0,0.0002117,2]
[362108659,1748002247115,-151.0,0.0002117,2]
[362108661,1748002247125,-500.0,0.00021228,2]
[362108663,1748002247135,-281.46736741,0.00021229,2]
[362108665,1748002247145,-211.03242379,0.00021229,2]
[362108667,1748002247155,-430.0,0.00021229,2]
[362108669,1748002247165,-430.0,0.00021229,2]
[362108671,1748002247175,-430.0,0.00021229,2]
[362108674,1748002247185,-450.0,0.00021229,2]
[362108676,1748002247195,-430.0,0.00021229,2]
[362108678,1748002247205,-430.0,0.00021229,2]
[362108680,1748002247214,-430.0,0.00021229,2]
[362108683,1748002247226,-430.0,0.00021229,2]
[362108686,1748002247235,-151.0,0.00021229,2]
[362108688,1748002247245,-430.0,0.00021229,2]
[362108690,1748002247255,-430.0,0.00021229,2]
[362108692,1748002247264,-430.0,0.00021229,2]
[362108694,1748002247274,-430.0,0.00021229,2]
[362108696,1748002247284,-404.07,0.00021229,2]
[362108698,1748002247293,-400.0,0.00021229,2]
[362108701,1748002247303,-430.0,0.00021229,2]
[362108704,1748002247313,-430.0,0.00021229,2]
[362108707,1748002247323,-430.0,0.00021229,2]
[362108709,1748002247332,-430.0,0.00021229,2]
[362108712,1748002247342,-151.0,0.00021229,2]
[362108715,1748002247352,-403.04,0.00021229,2]
[362108717,1748002247361,-151.0,0.00021229,2]
[362108719,1748002247371,-405.1774371,0.00021229,2]
[362108721,1748002247381,-430.0,0.00021229,2]
[362108723,1748002247391,-430.0,0.00021229,2]
[362108725,1748002247400,-563.7199999,0.00021229,2]
[362108727,1748002247410,-372.38214257,0.00021229,2]
[362108729,1748002247419,-430.0,0.00021229,2]
[362108731,1748002247428,-151.0,0.00021229,2]
[362108733,1748002247438,-400.0,0.00021229,2]
[362108735,1748002247448,-400.0,0.00021229,2]
[362108737,1748002247457,-400.0,0.00021229,2]
[362108739,1748002247470,-407.39882487,0.00021229,2]
[362108741,1748002247479,-400.0,0.00021229,2]
[362108743,1748002247489,-151.0,0.00021229,2]
[362108745,1748002247499,-151.0,0.00021229,2]
[362108747,1748002247508,-151.0,0.00021229,2]
[362108749,1748002247518,-322.185845,0.00021229,2]
[362108751,1748002247527,-322.185845,0.00021229,2]
[362108753,1748002247536,-500.0,0.00021232,2]
[362108755,1748002247546,-500.0,0.00021232,2]
[362108757,1748002247556,-151.0,0.00021233,2]
[362108759,1748002247566,-151.0,0.00021233,2]
[362108762,1748002247576,-181.591225,0.00021233,2]
[362108764,1748002247586,-256.334514,0.00021233,2]
[362108766,1748002247596,-430.0,0.00021233,2]
[362108768,1748002247605,-151.0,0.00021233,2]
[362108770,1748002247615,-200.815011,0.00021233,2]
[362108772,1748002247624,-200.815011,0.00021233,2]
[362108774,1748002247634,-430.0,0.00021233,2]
[362108776,1748002247644,-430.0,0.00021233,2]
[362108778,1748002247653,-430.0,0.00021233,2]
[362108780,1748002247664,-430.0,0.00021233,2]
[362108782,1748002247673,-430.0,0.00021233,2]
[362108784,1748002247683,-400.0,0.00021233,2]
[362108786,1748002247693,-400.0,0.00021233,2]
[362108788,1748002247703,-309.962197,0.00021233,2]
[362108790,1748002247714,-309.962197,0.00021233,2]
[362108792,1748002247730,-151.0,0.00021233,2]
[362108794,1748002247740,-151.0,0.00021233,2]
[362108796,1748002247753,-151.0,0.00021233,2]
[362108798,1748002247763,-151.0,0.00021233,2]
[362108800,1748002247773,-151.0,0.00021233,2]
[362108802,1748002247783,-151.0,0.00021233,2]
[362108804,1748002247794,-151.0,0.00021233,2]
[362108807,1748002247803,-151.0,0.00021233,2]
[362108808,1748002247812,-151.0,0.00021233,2]
[362108810,1748002247823,-322.185845,0.00021233,2]
[362108812,1748002247834,-322.185845,0.00021233,2]
[362108815,1748002247844,-233.623306,0.00021233,2]
[362108817,1748002247854,-233.623306,0.00021233,2]
[362108818,1748002247864,-163.572128,0.00021233,2]
[362108821,1748002247874,-163.572128,0.00021233,2]
[362108823,1748002247884,-151.0,0.00021233,2]
[362108825,1748002247894,-151.0,0.00021233,2]
[362108826,1748002247904,-151.0,0.00021233,2]
[362108829,1748002247914,-151.0,0.00021233,2]
[362108831,1748002247924,-500.0,0.00021238,2]
[362108832,1748002247934,-500.0,0.00021238,2]
[362108835,1748002247944,-500.0,0.00021238,2]
[362108837,1748002247954,-500.0,0.00021238,2]
[362108838,1748002247964,-430.0,0.00021239,2]
[362108840,1748002247977,-430.0,0.00021239,2]
[362108842,1748002247988,-403.65743613,0.00021239,2]
[362108844,1748002247998,-430.0,0.00021239,2]
[362108847,1748002248008,-430.0,0.00021239,2]
[362108848,1748002248018,-314.46067284,0.00021239,2]
[362108850,1748002248027,-405.07184598,0.00021239,2]
[362108852,1748002248038,-430.0,0.00021239,2]
[362108854,1748002248048,-430.75564049,0.00021239,2]
[362108856,1748002248058,-430.0,0.00021239,2]
[362108858,1748002248069,-467.08122281,0.00021239,2]
[362108860,1748002248079,-500.0,0.00021239,2]
[362108862,1748002248090,-430.0,0.00021239,2]
[362108864,1748002248100,-430.0,0.00021239,2]
[362108866,1748002248109,-397.6751101,0.00021239,2]
[362108868,1748002248119,-400.0,0.00021239,2]
[362108870,1748002248129,-430.0,0.00021239,2]
[362108872,1748002248140,-430.0,0.00021239,2]
[362108874,1748002248150,-430.0,0.00021239,2]
[362108876,1748002248161,-430.0,0.00021239,2]
[362108878,1748002248171,-455.75175752,0.00021239,2]
[362108880,1748002248181,-507.75442436,0.00021239,2]
[362108882,1748002248191,-1000.0,0.00021239,2]
[362108884,1748002248200,-418.36751755,0.00021239,2]
[362108886,1748002248210,-401.62763383,0.00021239,2]
[362108888,1748002248221,-430.0,0.00021239,2]
[362108890,1748002248230,-430.0,0.00021239,2]
[362108892,1748002248240,-431.11393876,0.00021239,2]
[362108894,1748002248250,-430.0,0.00021239,2]
[362108896,1748002248260,-505.58259488,0.00021239,2]
[362108898,1748002248270,-430.0,0.00021239,2]
[362108900,1748002248280,-430.0,0.00021239,2]
[362108902,1748002248290,-534.97334929,0.00021239,2]
[362108904,1748002248301,-423.5252943,0.00021239,2]
[362108906,1748002248311,-430.0,0.00021239,2]
[362108908,1748002248321,-402.71263267,0.00021239,2]
[362108910,1748002248331,-497.29045021,0.00021239,2]
[362108912,1748002248341,-504.6020511,0.00021239,2]
[362108914,1748002248351,-430.0,0.00021239,2]
[362108916,1748002248360,-430.0,0.00021239,2]
[362108918,1748002248370,-430.0,0.00021239,2]
[362108930,1748002248483,-430.0,0.00021239,2]
[362108933,1748002248494,-430.0,0.00021239,2]
[362108934,1748002248504,-430.0,0.00021239,2]
[362108936,1748002248514,-430.0,0.00021239,2]
[362108938,1748002248525,-430.0,0.00021239,2]
[362108941,1748002248535,-430.0,0.00021239,2]
[362108943,1748002248546,-430.0,0.00021239,2]
[362108945,1748002248556,-430.0,0.00021239,2]
[362108947,1748002248566,-430.0,0.00021239,2]
[362108949,1748002248577,-430.0,0.00021239,2]
[362108951,1748002248587,-500.0,0.00021239,2]
[362108953,1748002248599,-430.0,0.00021239,2]
[362108955,1748002248609,-430.0,0.00021239,2]
[362108957,1748002248620,-430.0,0.00021239,2]
[362108959,1748002248631,-430.0,0.00021239,2]
[362108961,1748002248642,-404.97967519,0.00021239,2]
[362108963,1748002248652,-430.0,0.00021239,2]
[362108965,1748002248663,-400.0,0.00021239,2]
[362108967,1748002248674,-400.0,0.00021239,2]
[362108969,1748002248684,-430.0,0.00021239,2]
[362108971,1748002248694,-400.0,0.00021239,2]
[362108973,1748002248705,-430.0,0.00021239,2]
[362108974,1748002248716,-400.0,0.00021239,2]
[362108975,1748002248728,-400.0,0.00021239,2]
[362108976,1748002248741,-430.0,0.00021239,2]
[362108977,1748002248753,-430.0,0.00021239,2]
[362108978,1748002248763,-430.0,0.00021239,2]
[362108979,1748002248773,-430.0,0.00021239,2]
[362108980,1748002248783,-430.0,0.00021239,2]
[362108982,1748002248793,-430.0,0.00021239,2]
[362108984,1748002248804,-506.55194656,0.00021239,2]
[362108986,1748002248814,-411.62861694,0.00021239,2]
[362108988,1748002248826,-512.80987894,0.00021239,2]
[362108990,1748002248836,-502.13383526,0.00021239,2]
[362108992,1748002248846,-430.0,0.00021239,2]
[362108994,1748002248856,-430.0,0.00021239,2]
[362108996,1748002248866,-409.73085161,0.00021239,2]
[362108998,1748002248876,-430.0,0.00021239,2]
[362109000,1748002248887,-151.0,0.00021239,2]
[362109002,1748002248897,-430.0,0.00021239,2]
[362109004,1748002248908,-430.0,0.00021239,2]
[362109006,1748002248918,-430.0,0.00021239,2]
[362109008,1748002248928,-430.0,0.00021239,2]
[362109010,1748002248939,-430.0,0.00021239,2]
[362109012,1748002248950,-430.0,0.00021239,2]
[362109014,1748002248961,-430.0,0.00021239,2]
[362109016,1748002248973,-430.0,0.00021239,2]
[362109018,1748002248983,-151.0,0.00021239,2]
[362109020,1748002248995,-387.95690546,0.00021239,2]
[362109022,1748002249005,-430.0,0.00021239,2]
[362109024,1748002249015,-430.0,0.00021239,2]
[362109026,1748002249026,-471.40078174,0.00021239,2]
[362109028,1748002249036,-430.0,0.00021239,2]
[362109030,1748002249047,-430.0,0.00021239,2]
[362109032,1748002249057,-430.0,0.00021239,2]
[362109034,1748002249067,-430.0,0.00021239,2]
[362109036,1748002249078,-571.70389681,0.00021239,2]
[362109038,1748002249087,-430.0,0.00021239,2]
[362109040,1748002249097,-222.17360098,0.00021239,2]
[362109041,1748002249106,-430.0,0.00021239,2]
[362109043,1748002249116,-151.0,0.00021239,2]
[362109045,1748002249126,-430.0,0.00021239,2]
[362109048,1748002249137,-430.0,0.00021239,2]
[362109050,1748002249147,-430.0,0.00021239,2]
[362109051,1748002249157,-430.0,0.00021239,2]
[362109053,1748002249168,-430.0,0.00021239,2]
[362109055,1748002249178,-430.0,0.00021239,2]
[362109057,1748002249188,-430.0,0.00021239,2]
[362109060,1748002249199,-430.0,0.00021239,2]
[362109061,1748002249210,-430.0,0.00021239,2]
[362109064,1748002249222,-430.0,0.00021239,2]
[362109066,1748002249232,-430.0,0.00021239,2]
[362109068,1748002249243,-430.0,0.00021239,2]
[362109070,1748002249254,-225.09242696,0.00021239,2]
[362109071,1748002249264,-430.0,0.00021239,2]
[362109073,1748002249276,-430.0,0.00021239,2]
[362109076,1748002249286,-430.0,0.00021239,2]
[362109077,1748002249296,-430.0,0.00021239,2]
[362109079,1748002249307,-430.0,0.00021239,2]
[362109081,1748002249318,-430.0,0.00021239,2]
[362109083,1748002249328,-430.0,0.00021239,2]
[362109085,1748002249339,-430.0,0.00021239,2]
[362109087,1748002249349,-430.0,0.00021239,2]
[362109090,1748002249361,-401.14814464,0.00021239,2]
[362109092,1748002249372,-430.0,0.00021239,2]
[362109094,1748002249384,-430.0,0.00021239,2]
[362109096,1748002249396,-154.24207899,0.00021239,2]
[362109098,1748002249407,-430.0,0.00021239,2]
[362109100,1748002249418,-430.0,0.00021239,2]
[362109102,1748002249428,-430.0,0.00021239,2]